fUSD/lending_fUSD_20250818
["ID","MTS","AMOUNT","RATE_DAILY","PERIOD"]
[380039903,1755499044596,-51990.63921917,0.00034656,30]
[380039904,1755499044619,-167.51724829,0.00034656,60]
[380039905,1755499044662,-500.0,0.00034656,120]
[380039906,1755499044690,-261.0312933,0.00034656,120]
[380039907,1755499044713,-811.3105297,0.00034656,120]
[380039908,1755499044736,-4390.349976,0.00034656,120]
[380039909,1755499044760,-887.89443199,0.00034656,120]
[380039910,1755499044783,-5835.69539222,0.00034656,120]
[380039911,1755499044806,-38918.0625508,0.00034656,120]
[380039912,1755499044828,-54128.0,0.00034656,30]
[380039913,1755499044851,-203.0,0.00034656,120]
[380039914,1755499044874,-1086.40316346,0.00034656,120]
[380039915,1755499044899,-10000.0,0.00034656,120]
[380039916,1755499044922,-10000.0,0.00034656,120]
[380039917,1755499044947,-10000.0,0.00034656,120]
[380039918,1755499044970,-10000.0,0.00034656,30]
[380039919,1755499044994,-1210.0,0.00034656,120]
[380039920,1755499045017,-1643.0,0.00034656,60]
[380039921,1755499045045,-1646.0,0.00034656,60]
[380039922,1755499045069,-1643.0,0.00034656,60]
[380039923,1755499045094,-1643.0,0.00034656,60]
[380039924,1755499045120,-1643.0,0.00034656,60]
[380039925,1755499045144,-1071.0,0.00034656,60]
[380039926,1755499045168,-1071.0,0.00034656,60]
[380039927,1755499045192,-1071.0,0.00034656,60]
[380039928,1755499045217,-1071.0,0.00034656,60]
[380039929,1755499045243,-1071.0,0.00034656,60]
[380039930,1755499045266,-2681.0,0.00034656,60]
[380039931,1755499045293,-2683.0,0.00034656,60]
[380039932,1755499045318,-2681.0,0.00034656,60]
[380039933,1755499045347,-2681.0,0.00034656,60]
[380039934,1755499045371,-2681.0,0.00034656,60]
[380039935,1755499045395,-2681.0,0.00034656,60]
[380039936,1755499045419,-2681.0,0.00034656,60]
[380039937,1755499045451,-2681.0,0.00034656,60]
[380039938,1755499045475,-2681.0,0.00034656,60]
[380039939,1755499045498,-2681.0,0.00034656,60]
[380039940,1755499045521,-2681.0,0.00034656,60]
[380039941,1755499045546,-2681.0,0.00034656,60]
[380039942,1755499045570,-2681.0,0.00034656,60]
[380039943,1755499045594,-2681.0,0.00034656,60]
[380039944,1755499045618,-2681.0,0.00034656,60]
[380039945,1755499045642,-100000.7808682,0.00034656,120]
[380039946,1755499045666,-2127.65,0.00034656,120]
[380039947,1755499045689,-6376.83868655,0.00034656,30]
[380039948,1755499045712,-2777.78,0.00034656,120]
[380039949,1755499045736,-2437.27967073,0.00034656,120]
[380039950,1755499045761,-26285.30870693,0.00034656,30]
[380039951,1755499045784,-15675.53472606,0.00034656,120]
[380039952,1755499045807,-296.26400867,0.00034656,120]
[380039953,1755499045830,-1000.0,0.00034656,30]
[380039954,1755499045854,-1000.0,0.00034656,30]
[380039955,1755499045877,-1000.0,0.00034656,30]
[380039956,1755499045901,-1000.0,0.00034656,30]
[380039957,1755499045924,-1000.0,0.00034656,30]
[380039958,1755499045947,-1000.0,0.00034656,30]
[380039959,1755499045972,-1000.0,0.00034656,30]
[380039960,1755499045996,-3000.0,0.00034656,120]
[380039961,1755499046019,-1000.0,0.00034656,120]
[380039962,1755499046046,-433.56714968,0.00034656,60]
[380039963,1755499046069,-1000.0,0.00034656,30]
[380039964,1755499046095,-590.873525,0.00034656,120]
[380039965,1755499046118,-1059.999999,0.00034656,120]
[380039966,1755499046141,-2369.49329484,0.00034656,120]
[380039967,1755499046166,-2746.49663481,0.00034656,91]
[380039968,1755499046191,-560.54181786,0.00034656,30]
[380039969,1755499046214,-2685.53902591,0.00034656,120]
[380039970,1755499046238,-2252.68229389,0.00034656,120]
[380039971,1755499046263,-2633.7848464,0.00034656,120]
[380039972,1755499046286,-3286.58237285,0.00034656,120]
[380039973,1755499046310,-402.81695258,0.00034656,30]
[380039974,1755499046334,-636.24,0.00034656,120]
[380039975,1755499046360,-2170000.0,0.00034656,30]
[380039976,1755499046384,-3000.0,0.00034656,30]
[380039977,1755499046410,-500.0,0.00034656,120]
[380039978,1755499046438,-500.0,0.00034656,120]
[380039979,1755499046467,-500.0,0.00034656,120]
[380039980,1755499046492,-500.0,0.00034656,120]
[380039981,1755499046519,-500.0,0.00034656,120]
[380039982,1755499046545,-500.0,0.00034656,120]
[380039983,1755499046572,-500.0,0.00034656,120]
[380039984,1755499046598,-500.0,0.00034656,120]
[380039985,1755499046625,-500.0,0.00034656,120]
[380039986,1755499046652,-500.0,0.00034656,120]
[380039987,1755499046680,-500.0,0.00034656,120]
[380039988,1755499046708,-500.0,0.00034656,120]
[380039989,1755499046734,-500.0,0.00034656,120]
[380039990,1755499046762,-500.0,0.00034656,120]
[380039991,1755499046790,-500.0,0.00034656,120]
[380039992,1755499046815,-500.0,0.00034656,120]
[380039993,1755499046842,-500.0,0.00034656,120]
[380039994,1755499046869,-455.3,0.00034656,120]
[380039995,1755499046894,-1430.0976677,0.00034656,120]
[380039996,1755499046918,-3159.0,0.00034656,120]
[380039997,1755499046942,-45025.62387531,0.00034656,30]
[380039998,1755499046968,-500.0,0.00034656,120]
[380039999,1755499046993,-500.0,0.00034656,120]
[380040000,1755499047018,-318.59313546,0.00034656,120]
[380040001,1755499047047,-915.84736997,0.00034656,120]
[380040002,1755499047072,-18183.5516235,0.00034656,30]
[380040003,1755499047099,-5100.0,0.00034656,36]
[380040004,1755499047375,-20287.30032122,0.00034656,30]
[380040005,1755499047400,-1109.14803538,0.00034656,120]
[380040006,1755499047424,-10409.1593205,0.00034656,30]
[380040007,1755499047447,-5772.95201826,0.00034656,30]
[380040008,1755499047472,-1469.8,0.00034656,30]
[380040009,1755499047495,-150000.0,0.00034656,30]
[380040010,1755499047519,-150000.0,0.00034656,30]
[380040011,1755499047542,-154000.0,0.00034656,30]
[380040012,1755499047568,-200000.0,0.00034656,120]
[380040013,1755499047607,-407.52162236,0.00034656,120]
[380040014,1755499047635,-211.9,0.00034656,30]
[380040015,1755499047659,-211.9,0.00034656,30]
[380040016,1755499047682,-211.9,0.00034656,30]
[380040017,1755499047707,-500.0,0.00034656,120]
[380040018,1755499047733,-285.3733656,0.00034656,120]
[380040019,1755499047756,-833.54178218,0.00034656,120]
[380040020,1755499047780,-201296.0,0.00034656,120]
[380040021,1755499047805,-1363.49172445,0.00034656,120]
[380040022,1755499047830,-6549.39,0.00034656,120]
[380040023,1755499047856,-7595.64178,0.00034656,60]
[380040024,1755499047880,-2751.75932186,0.00034656,75]
[380040025,1755499047906,-1430.78753125,0.00034656,30]
[380040026,1755499047933,-23118.22255908,0.00034656,120]
[380040027,1755499047960,-1151.94392561,0.00034656,120]
[380040028,1755499047985,-260.0,0.00034656,120]
[380040029,1755499048011,-512.0,0.00034656,120]
[380040030,1755499048038,-3000.0,0.00034656,120]
[380040031,1755499048064,-3000.0,0.00034656,120]
[380040032,1755499048090,-3000.0,0.00034656,120]
[380040033,1755499048115,-3000.0,0.00034656,120]
[380040034,1755499048143,-3000.0,0.00034656,120]
[380040035,1755499048168,-296.0,0.00034656,120]
[380040036,1755499048193,-500.0,0.00034656,120]
[380040037,1755499048218,-500.0,0.00034656,120]
[380040038,1755499048243,-500.0,0.00034656,120]
[380040039,1755499048268,-546.78484001,0.00034656,120]
[380040040,1755499048293,-578.80021698,0.00034656,30]
[380040041,1755499048321,-500.0,0.00034656,120]
[380040042,1755499048348,-494.92,0.00034656,120]
[380040043,1755499048372,-1629.41101255,0.00034656,60]
[380040044,1755499048396,-500.0,0.00034656,120]
[380040045,1755499048421,-641.21420379,0.00034656,120]
[380040046,1755499048446,-1021.50669772,0.00034656,120]
[380040047,1755499048470,-347.79421175,0.00034656,30]
[380040048,1755499048494,-7712.14262465,0.00034656,120]
[380040049,1755499048519,-2069.36468752,0.00034656,30]
[380040050,1755499048543,-2452.94888325,0.00034656,120]
[380040051,1755499048567,-2212.51605202,0.00034656,30]
[380040052,1755499048592,-2798.9462095,0.00034656,30]
[380040053,1755499048617,-1986.74657029,0.00034656,120]
[380040054,1755499048641,-2000.0,0.00034656,30]
[380040055,1755499048665,-376.13945173,0.00034656,30]
[380040056,1755499048689,-2061.18118446,0.00034656,120]
[380040057,1755499048712,-966.35863578,0.00034656,120]
[380040058,1755499048736,-903.08951466,0.00034656,120]
[380040059,1755499048760,-2637.14349551,0.00034656,120]
[380040060,1755499048788,-3290.92679185,0.00034656,120]
[380040061,1755499048820,-1088.63037144,0.00034656,120]
[380040062,1755499048845,-1382.76796999,0.00034656,120]
[380040063,1755499048869,-2867.31254546,0.00034656,120]
[380040064,1755499048892,-1932.90416129,0.00034656,120]
[380040065,1755499048916,-682.81049429,0.00034656,120]
[380040066,1755499048941,-3186.32093305,0.00034656,30]
[380040067,1755499048966,-1345.02548203,0.00034656,120]
[380040068,1755499048990,-997.0,0.00034656,30]
[380040069,1755499049014,-391.77286686,0.00034656,30]
[380040070,1755499049040,-397.58470326,0.00034656,120]
[380040071,1755499049065,-1386.04881744,0.00034656,120]
[380040072,1755499049091,-345.24414054,0.00034656,120]
[380040073,1755499049115,-911.12003458,0.00034656,30]
[380040074,1755499049141,-1721.54912133,0.00034656,120]
[380040075,1755499049165,-1042.19539661,0.00034656,120]
[380040076,1755499049190,-1252.65810906,0.00034656,120]
[380040077,1755499049213,-575.89792029,0.00034656,120]
[380040078,1755499049238,-210.35250994,0.00034656,30]
[380040079,1755499049263,-1337.49507405,0.00034656,120]
[380040080,1755499049288,-2122.50431322,0.00034656,120]
[380040081,1755499049312,-478.24631625,0.00034656,30]
[380040082,1755499049337,-1699.47399514,0.00034656,120]
[380040083,1755499049364,-15626.87238566,0.00034656,120]
[380040084,1755499049386,-815.95480319,0.00034656,120]
[380040085,1755499049409,-275.5195647,0.00034656,30]
[380040086,1755499049433,-1254.63845903,0.00034656,30]
[380040087,1755499049458,-736.76530614,0.00034656,30]
[380040088,1755499049483,-2785.87754106,0.00034656,30]
[380040089,1755499049506,-1237.75055933,0.00034656,120]
[380040090,1755499049530,-828.64759422,0.00034656,120]
[380040091,1755499049554,-210.17092839,0.00034656,31]
[380040092,1755499049578,-1820.68503794,0.00034656,30]
[380040093,1755499049603,-2407.70030563,0.00034656,30]
[380040094,1755499049625,-3235.67777772,0.00034656,30]
[380040095,1755499049647,-781.62507959,0.00034656,120]
[380040096,1755499049671,-1514.61701479,0.00034656,30]
[380040097,1755499049695,-3317.0896781,0.00034656,30]
[380040098,1755499049718,-887.42625521,0.00034656,30]
[380040099,1755499049742,-1351.47833921,0.00034656,120]
[380040100,1755499049768,-1147.31486674,0.00034656,120]
[380040101,1755499049791,-296.52795355,0.00034656,120]
[380040102,1755499049814,-2569.96915584,0.00034656,120]
[380040103,1755499049837,-1020.95788069,0.00034656,120]
[380040104,1755499049861,-219.79271144,0.00034656,120]
[380040105,1755499049885,-173.4706696,0.00034656,120]
[380040106,1755499049908,-270.57275985,0.00034656,30]
[380040107,1755499049932,-3338.15510125,0.00034656,120]
[380040108,1755499049955,-499.99698229,0.00034656,120]
[380040109,1755499049979,-529.05651666,0.00034656,120]
[380040110,1755499050003,-2871.53757659,0.00034656,120]
[380040111,1755499050027,-801.90431211,0.00034656,120]
[380040112,1755499050054,-442.93732648,0.00034656,30]
[380040113,1755499050078,-2324.35646187,0.00034656,120]
[380040114,1755499050103,-2955.14452428,0.00034656,30]
[380040115,1755499050129,-3207.2839526,0.00034656,120]
[380040116,1755499050154,-981.62753412,0.00034656,30]
[380040117,1755499050178,-1200.75134859,0.00034656,30]
[380040118,1755499050203,-503.22810222,0.00034656,120]
[380040119,1755499050228,-996.59376749,0.00034656,120]
[380040120,1755499050500,-320.48592808,0.00034656,120]
[380040121,1755499050526,-958.90150602,0.00034656,120]
[380040122,1755499050549,-2008.64415538,0.00034656,30]
[380040123,1755499050574,-486.16674999,0.00034656,60]
[380040124,1755499050600,-1420.72892407,0.00034656,120]
[380040125,1755499050625,-1207.4313341,0.00034656,30]
[380040126,1755499050651,-263.65515675,0.00034656,120]
[380040127,1755499050674,-303.23820353,0.00034656,120]
[380040128,1755499050697,-1933.33130431,0.00034656,120]
[380040129,1755499050722,-3521.73750349,0.00034656,60]
[380040130,1755499050747,-804.46787182,0.00034656,120]
[380040131,1755499050770,-166.90028333,0.00034656,120]
[380040132,1755499050792,-210.52190658,0.00034656,120]
[380040133,1755499050817,-2295.71111973,0.00034656,30]
[380040134,1755499050842,-562.57729799,0.00034656,120]
[380040135,1755499050867,-447.53889503,0.00034656,30]
[380040136,1755499050892,-2853.0,0.00034656,120]
[380040137,1755499050917,-3165.77,0.00034656,120]
[380040138,1755499050951,-1754.37559132,0.00034656,30]
[380040139,1755499050985,-1213.0,0.00034656,120]
[380040140,1755499051012,-1068.81062473,0.00034656,120]
[380040141,1755499051039,-1504.0,0.00034656,120]
[380040142,1755499051064,-1000.0,0.00034656,120]
[380040143,1755499051090,-385.0,0.00034656,120]
[380040144,1755499051115,-1068.0,0.00034656,120]
[380040145,1755499051140,-1000.0,0.00034656,120]
[380040146,1755499051164,-1000.0,0.00034656,120]
[380040147,1755499051188,-1000.0,0.00034656,120]
[380040148,1755499051212,-1000.0,0.00034656,120]
[380040149,1755499051235,-1000.0,0.00034656,120]
[380040150,1755499051260,-69683.3024766,0.00034656,120]
[380040151,1755499051285,-10000.0,0.00034656,71]
[380040152,1755499051309,-6187.83783391,0.00034656,60]
[380040153,1755499051334,-13001.63827432,0.00034656,60]
[380040154,1755499051360,-71610.21534074,0.00034656,30]
[380040155,1755499051384,-4990.01076498,0.00034656,30]
[380040156,1755499051409,-332.14707076,0.00034656,120]
[380040157,1755499051434,-1718.21467,0.00034656,120]
[380040158,1755499051461,-14851.90113896,0.00034656,30]
[380040159,1755499051487,-903986.63156637,0.00034656,30]
[380040160,1755499051512,-128967.9484705,0.00034656,30]
[380040161,1755499051535,-67828.61692721,0.00034656,30]
[380040162,1755499051559,-55022.95443648,0.00034656,30]
[380040163,1755499051583,-571399.79356507,0.00034656,30]
[380040164,1755499051610,-508466.50485657,0.00034656,30]
[380040165,1755499063855,-168.12,9.536e-05,2]
[380040166,1755499067241,-1601968.37179388,0.00034656,30]
[380040167,1755499067267,-10377.19556149,0.00034656,30]
[380040168,1755499067292,-3166021.02420404,0.00034656,60]
[380040169,1755499067318,-7500.000001,0.00034656,30]
[380040170,1755499067343,-2034904.37585224,0.00034656,30]
[380040171,1755499067368,-13308.69650223,0.00034656,30]
[380040172,1755499067393,-13907.13135507,0.00034656,30]
[380040173,1755499067419,-5100.0,0.00034656,35]
[380040174,1755499067446,-2102.40210164,0.00034656,30]
[380040175,1755499067471,-2488.09528337,0.00034656,30]
[380040176,1755499067495,-1736.10713965,0.00034656,120]
[380040177,1755499067526,-368.70085053,0.00034656,120]
[380040178,1755499067557,-1000.0,0.00034656,120]
[380040179,1755499067583,-1000.0,0.00034656,120]
[380040180,1755499067609,-1000.0,0.00034656,120]
[380040181,1755499067635,-1000.0,0.00034656,120]
[380040182,1755499067664,-1000.0,0.00034656,120]
[380040183,1755499067689,-1000.0,0.00034656,120]
[380040184,1755499067714,-1000.0,0.00034656,120]
[380040185,1755499067739,-1000.0,0.00034656,120]
[380040186,1755499067765,-1000.0,0.00034656,120]
[380040187,1755499067791,-1000.0,0.00034656,120]
[380040188,1755499067818,-1000.0,0.00034656,120]
[380040189,1755499067844,-1000.0,0.00034656,120]
[380040190,1755499067869,-1000.0,0.00034656,120]
[380040191,1755499067894,-1000.0,0.00034656,120]
[380040192,1755499067919,-1000.0,0.00034656,120]
[380040193,1755499067947,-1000.0,0.00034656,120]
[380040194,1755499067974,-1000.0,0.00034656,120]
[380040195,1755499067999,-1000.0,0.00034656,120]
[380040196,1755499068024,-1000.0,0.00034656,120]
[380040197,1755499068053,-1000.0,0.00034656,120]
[380040198,1755499068085,-1000.0,0.00034656,120]
[380040199,1755499068113,-1000.0,0.00034656,120]
[380040200,1755499068141,-1000.0,0.00034656,120]
[380040201,1755499068166,-1000.0,0.00034656,120]
[380040202,1755499068199,-1000.0,0.00034656,120]
[380040203,1755499068241,-1000.0,0.00034656,120]
[380040204,1755499068268,-1000.0,0.00034656,120]
[380040205,1755499068295,-1000.0,0.00034656,120]
[380040206,1755499068320,-1000.0,0.00034656,120]
[380040207,1755499068347,-1000.0,0.00034656,120]
[380040208,1755499068373,-1000.0,0.00034656,120]
[380040209,1755499068399,-1000.0,0.00034656,120]
[380040210,1755499068427,-1000.0,0.00034656,120]
[380040211,1755499068454,-1000.0,0.00034656,120]
[380040212,1755499068480,-1000.0,0.00034656,120]
[380040213,1755499068506,-11746.40686043,0.00034656,120]
[380040214,1755499068534,-500.0,0.00034656,120]
[380040215,1755499068561,-277.35109949,0.00034656,120]
[380040216,1755499068587,-27455.0,0.00034656,30]
[380040217,1755499068613,-161.08961496,0.00034656,120]
[380040218,1755499068640,-152.62913745,0.00034656,60]
[380040219,1755499068669,-610.9,0.00034656,30]
[380040220,1755499068695,-842.299999,0.00034656,60]
[380040221,1755499068721,-842.299999,0.00034656,90]
[380040222,1755499068746,-842.299999,0.00034656,120]
[380040223,1755499068771,-535.0418454,0.00034656,30]
[380040224,1755499068796,-35558.712392,0.00034656,30]
[380040225,1755499068821,-1092.00794826,0.00034656,30]
[380040226,1755499068846,-594.07228951,0.00034656,120]
[380040227,1755499068873,-704.56790805,0.00034656,120]
[380040228,1755499068899,-64942.54756899,0.00034656,120]
[380040229,1755499069462,-1725066.62462181,0.00034656,30]
[380040230,1755499069494,-345.53350653,0.00034656,120]
[380040231,1755499069518,-2706.66798414,0.00034656,120]
[380040232,1755499069549,-430.46633585,0.00034656,120]
[380040233,1755499069575,-8483.51877492,0.00034656,120]
[380040234,1755499069601,-61207.0,0.00034656,30]
[380040235,1755499069628,-5100.0,0.00034656,38]
[380040236,1755499069657,-1060.8107504,0.00034656,30]
[380040237,1755499069684,-168.0,0.00034656,120]
[380040238,1755499069710,-37909.28717007,0.00034656,120]
[380040239,1755499069736,-524.48965,0.00034656,120]
[380040240,1755499069762,-23912.46713069,0.00034656,120]
[380040241,1755499069788,-29173.0,0.00034656,60]
[380040242,1755499069816,-29176.0,0.00034656,60]
[380040243,1755499069842,-29173.0,0.00034656,60]
[380040244,1755499069868,-29173.0,0.00034656,60]
[380040245,1755499069895,-29173.0,0.00034656,60]
[380040246,1755499069921,-5097.21263583,0.00034656,120]
[380040247,1755499069947,-3417.247805,0.00034656,120]
[380040248,1755499069974,-2080.2,0.00034656,120]
[380040249,1755499070001,-2734.20110274,0.00034656,120]
[380040250,1755499070029,-31353.6920984,0.00034656,30]
[380040251,1755499070060,-2076.79454792,0.00034656,120]
[380040252,1755499070086,-1085.0,0.00034656,30]
[380040253,1755499070114,-1085.0,0.00034656,30]
[380040254,1755499070141,-1085.0,0.00034656,30]
[380040255,1755499070168,-1085.0,0.00034656,30]
[380040256,1755499070194,-1085.0,0.00034656,30]
[380040257,1755499070221,-161.33056667,0.00034656,120]
[380040258,1755499070247,-3902.52549442,0.00034656,120]
[380040259,1755499070274,-22919.96205776,0.00034656,120]
[380040260,1755499070300,-599.32890042,0.00034656,30]
[380040261,1755499070328,-8087.9985188,0.00034656,120]
[380040262,1755499070354,-1085.0,0.00034656,30]
[380040263,1755499070381,-1085.0,0.00034656,30]
[380040264,1755499070406,-1085.0,0.00034656,30]
[380040265,1755499070434,-207.96350547,0.00034656,30]
[380040266,1755499070460,-5196.0,0.00034656,60]
[380040267,1755499070487,-9191.01861297,0.00034656,120]
[380040268,1755499070515,-671.91228288,0.00034656,120]
[380040269,1755499070542,-839200.41863963,0.00034656,60]
[380040273,1755499116791,-200.0,9.492e-05,2]
[380040276,1755499128813,-116.9,9.492e-05,2]
[380040277,1755499129260,-12.72,9.536e-05,2]
[380040278,1755499151245,-167.9,9.536e-05,2]
[380040279,1755499153800,-167.49875239,9.536e-05,2]
[380040280,1755499156942,-285.58126199,9.536e-05,2]
[380040281,1755499160234,-198.17998562,9.536e-05,2]
[380040282,1755499166389,-250.0,9.585e-05,2]
[380040283,1755499166414,-36025.51990418,0.0001,2]
[380040284,1755499178322,-10000000.0,0.00034646,60]
[380040285,1755499187274,170.0,9.836e-05,7]
[380040286,1755499200600,5124.93,9.481e-05,2]
[380040287,1755499208164,-10000000.0,0.00034646,60]
[380040288,1755499213368,-162.06,0.00010032,2]
[380040289,1755499213397,-327.39651756,0.00010036,2]
[380040290,1755499213426,-250.29303735,0.00010036,2]
[380040291,1755499213454,-500.0,0.00010036,2]
[380040292,1755499213487,-236.69808885,0.00010036,2]
[380040293,1755499213516,-162.06,0.00010037,2]
[380040294,1755499213545,-162.06,0.00010042,2]
[380040295,1755499213576,-245.11452645,0.00010046,2]
[380040296,1755499213607,-162.06,0.00010047,2]
[380040297,1755499213638,-162.06,0.00010053,2]
[380040298,1755499213670,-162.06,0.00010058,2]
[380040299,1755499213700,-162.06,0.00010063,2]
[380040300,1755499213728,-300.0,0.00010068,2]
[380040301,1755499213758,-1200.0,0.00010068,2]
[380040302,1755499213787,-162.06,0.00010069,2]
[380040303,1755499213815,-499.99,0.00010069,2]
[380040304,1755499213843,-9999.99,0.00010069,2]
[380040305,1755499213878,-2631.1931312,0.00010069,2]
[380040306,1755499214707,-7368.7968688,0.00010069,2]
[380040307,1755499224372,-521557.90136037,0.00034646,60]
[380040308,1755499224397,-460.58569568,0.00034646,120]
[380040309,1755499224421,-3132.93432675,0.00034646,30]
[380040310,1755499224447,-165.7,0.00034646,30]
[380040311,1755499224475,-1000.0,0.00034646,90]
[380040312,1755499224502,-842.099999,0.00034646,90]
[380040313,1755499224528,-1000.0,0.00034646,120]
[380040314,1755499224554,-842.299999,0.00034646,120]
[380040315,1755499224580,-2416.0158918,0.00034646,30]
[380040316,1755499225815,300.0,0.000135,10]
[380040317,1755499225972,300.0,0.000135,10]
[380040318,1755499226752,300.0,0.000135,10]
[380040319,1755499226883,300.0,0.000135,10]
[380040320,1755499227203,300.0,0.000135,10]
[380040321,1755499234051,805.6,0.00034646,30]
[380040322,1755499249565,-1000.0,0.000178,30]
[380040323,1755499249704,-310.64038803,0.00018478,30]
[380040324,1755499249797,-2145.03079,0.0001901,30]
[380040325,1755499249857,-310.0320194,0.00019401,30]
[380040326,1755499249949,-1000.0,0.000199,30]
[380040327,1755499249978,-2456.31775436,0.0002,30]
[380040328,1755499250004,-2179.51649181,0.0002,30]
[380040329,1755499250424,-579.79196448,0.0002,30]
[380040330,1755499250468,-212.00699823,0.0002,30]
[380040331,1755499250496,-458.40919931,0.0002,30]
[380040332,1755499250541,-310.00160097,0.00020371,30]
[380040333,1755499250569,-109201.37501584,0.000209,30]
[380040334,1755499250596,-212.00699823,0.00021,30]
[380040335,1755499250622,-458.40919931,0.00021,30]
[380040336,1755499250651,-200.0,0.00021616,30]
[380040337,1755499250677,-200.0,0.00021616,30]
[380040338,1755499250702,-200.0,0.00021616,30]
[380040339,1755499250726,-200.0,0.00021616,30]
[380040340,1755499250757,-1000.0,0.0002249,30]
[380040341,1755499250784,-19973.71566445,0.00023,30]
[380040342,1755499250815,-810.1230285,0.00024,90]
[380040343,1755499250841,-3166.98140435,0.00024,30]
[380040344,1755499250869,-700.00000001,0.000241,30]
[380040345,1755499250896,-500.0,0.0002451,30]
[380040346,1755499250921,-500.86054287,0.0002451,30]
[380040347,1755499250948,-500.0,0.0002451,30]
[380040348,1755499250975,-500.0,0.0002451,30]
[380040349,1755499251002,-500.0,0.0002451,30]
[380040350,1755499251028,-500.0,0.0002451,30]
[380040351,1755499251053,-500.0,0.0002451,30]
[380040352,1755499251078,-500.0,0.0002451,30]
[380040353,1755499251113,-500.0,0.0002451,30]
[380040354,1755499251138,-2100.0,0.0002451,30]
[380040355,1755499251164,-500.0,0.0002451,30]
[380040356,1755499251191,-500.0,0.0002451,30]
[380040357,1755499251217,-2100.0,0.0002451,30]
[380040358,1755499251243,-500.0,0.0002451,30]
[380040359,1755499251271,-678.08872719,0.0002451,30]
[380040360,1755499251296,-500.0,0.0002451,30]
[380040361,1755499251322,-2100.0,0.0002451,30]
[380040362,1755499251347,-500.0,0.0002451,30]
[380040363,1755499251372,-2100.0,0.0002451,30]
[380040364,1755499251396,-500.0,0.0002451,30]
[380040365,1755499251422,-2100.0,0.0002451,30]
[380040366,1755499251448,-500.0,0.0002451,30]
[380040367,1755499251473,-500.0,0.0002451,30]
[380040368,1755499251498,-2100.0,0.0002451,30]
[380040369,1755499251523,-500.0,0.0002451,30]
[380040370,1755499251548,-500.0,0.0002451,30]
[380040371,1755499251573,-500.0,0.0002451,30]
[380040372,1755499251599,-500.0,0.0002451,30]
[380040373,1755499251624,-2100.0,0.0002451,30]
[380040374,1755499251649,-500.0,0.0002451,30]
[380040375,1755499251674,-500.0,0.0002451,30]
[380040376,1755499251700,-2100.0,0.0002451,30]
[380040377,1755499251725,-500.0,0.0002451,30]
[380040378,1755499251749,-500.0,0.0002451,30]
[380040379,1755499251774,-2100.0,0.0002451,30]
[380040380,1755499251799,-500.0,0.0002451,30]
[380040381,1755499251824,-2100.0,0.0002451,30]
[380040382,1755499251851,-506.2079966,0.0002451,30]
[380040383,1755499251876,-2100.0,0.0002451,30]
[380040384,1755499251901,-500.0,0.0002451,30]
[380040385,1755499251927,-2100.0,0.0002451,30]
[380040386,1755499251952,-2100.0,0.0002451,30]
[380040387,1755499251977,-2279.53414592,0.0002451,30]
[380040388,1755499252003,-2200.0,0.0002451,30]
[380040389,1755499252028,-2200.0,0.0002451,30]
[380040390,1755499252054,-2200.0,0.0002451,30]
[380040391,1755499252083,-2200.0,0.0002451,30]
[380040392,1755499252112,-2200.0,0.0002451,30]
[380040393,1755499252140,-500.0,0.0002451,30]
[380040394,1755499252165,-509.87808392,0.0002451,30]
[380040395,1755499252190,-2200.0,0.0002451,30]
[380040396,1755499252222,-2200.0,0.0002451,30]
[380040397,1755499252256,-2200.0,0.0002451,30]
[380040398,1755499252284,-2200.0,0.0002451,30]
[380040399,1755499252308,-2200.0,0.0002451,30]
[380040400,1755499252333,-2200.0,0.0002451,30]
[380040401,1755499252357,-900.0,0.0002451,30]
[380040402,1755499252381,-2200.0,0.0002451,30]
[380040403,1755499252406,-900.0,0.0002451,30]
[380040404,1755499252430,-2200.0,0.0002451,30]
[380040405,1755499252454,-4086.84743111,0.0002451,30]
[380040406,1755499252478,-900.0,0.0002451,30]
[380040407,1755499252502,-1300.0,0.0002451,30]